[Event "Early-Titled-Tuesday-Blitz-May-14-2024"]
[Site "Chess.com"]
[Date "2024.05.14"]
[Round "2"]
[White "Denisenko_Denis"]
[Black "Vincent_Vega95"]
[Result "0-1"]
[WhiteElo "2435"]
[BlackElo "2745"]
[TimeControl "180+1"]
[EndTime "8:17:22 PDT"]
[Termination "Vincent_Vega95 won by checkmate"]

1. d4 {[%clk 0:03:00.9]} 1... Nf6 {[%clk 0:02:59.7]} 2. Nf3 {[%clk 0:02:58.7]}
2... g6 {[%clk 0:02:59.9]} 3. Bf4 {[%clk 0:02:57.4]} 3... Bg7 {[%clk 0:03:00]}
4. c3 {[%clk 0:02:57.3]} 4... d6 {[%clk 0:02:59.6]} 5. Nbd2 {[%clk 0:02:56.8]}
5... O-O {[%clk 0:02:59.2]} 6. h3 {[%clk 0:02:56]} 6... Nc6 {[%clk 0:02:56.2]}
7. e4 {[%clk 0:02:55.6]} 7... Re8 {[%clk 0:02:52.1]} 8. Be2 {[%clk 0:02:55]}
8... e5 {[%clk 0:02:51.6]} 9. dxe5 {[%clk 0:02:54.6]} 9... dxe5 {[%clk
0:02:52.3]} 10. Be3 {[%clk 0:02:54.4]} 10... Nh5 {[%clk 0:02:49]} 11. O-O {[%clk
0:02:53.7]} 11... Nf4 {[%clk 0:02:49.1]} 12. Bb5 {[%clk 0:02:50]} 12... Qf6
{[%clk 0:02:42.9]} 13. Qc2 {[%clk 0:02:42.4]} 13... Bd7 {[%clk 0:02:29.2]} 14.
Rfd1 {[%clk 0:02:35.6]} 14... Rad8 {[%clk 0:01:56.2]} 15. Bf1 {[%clk 0:02:34.6]}
15... g5 {[%clk 0:01:56.5]} 16. Nh2 {[%clk 0:02:30.4]} 16... h5 {[%clk
0:01:56.7]} 17. b4 {[%clk 0:02:22.8]} 17... g4 {[%clk 0:01:45.3]} 18. hxg4
{[%clk 0:02:19.7]} 18... hxg4 {[%clk 0:01:46.2]} 19. Nb3 {[%clk 0:02:06.1]}
19... Qg6 {[%clk 0:01:45.3]} 20. g3 {[%clk 0:02:02.7]} 20... Nh3+ {[%clk
0:01:23.6]} 21. Kg2 {[%clk 0:02:02]} 21... Bc8 {[%clk 0:00:59.8]} 22. Rxd8
{[%clk 0:01:59.6]} 22... Rxd8 {[%clk 0:01:00.7]} 23. Be2 {[%clk 0:01:49.8]}
23... f5 {[%clk 0:01:00.3]} 24. Rd1 {[%clk 0:01:35.5]} 24... f4 {[%clk
0:00:59.7]} 25. Rxd8+ {[%clk 0:01:33.9]} 25... Nxd8 {[%clk 0:01:00.6]} 26. gxf4
{[%clk 0:01:27.3]} 26... exf4 {[%clk 0:00:55.6]} 27. Bc4+ {[%clk 0:01:22.8]}
27... Kh7 {[%clk 0:00:40.6]} 28. Bd4 {[%clk 0:01:18.9]} 28... g3 {[%clk
0:00:30]} 29. Nf3 {[%clk 0:00:45.1]} 29... gxf2+ {[%clk 0:00:28.5]} 30. Kf1
{[%clk 0:00:44.5]} 30... Bxd4 {[%clk 0:00:28.8]} 31. Nbxd4 {[%clk 0:00:40.2]}
31... Qg1+ {[%clk 0:00:28.9]} 32. Nxg1 {[%clk 0:00:36.6]} 32... fxg1=Q+ {[%clk
0:00:29.3]} 33. Ke2 {[%clk 0:00:35.9]} 33... Bg4+ {[%clk 0:00:29.1]} 34. Kd2
{[%clk 0:00:33.6]} 34... Qe3# {[%clk 0:00:28.7]} 0-1

[Event "Early-Titled-Tuesday-Blitz-May-14-2024"]
[Site "Chess.com"]
[Date "2024.05.14"]
[Round "2"]
[White "ChessQueen"]
[Black "SHIVACalypso"]
[Result "1-0"]
[WhiteElo "2801"]
[BlackElo "2557"]
[TimeControl "180+1"]
[EndTime "8:17:23 PDT"]
[Termination "ChessQueen won by resignation"]

1. Nf3 {[%clk 0:03:00.9]} 1... Nf6 {[%clk 0:02:59.1]} 2. g3 {[%clk 0:03:00.7]}
2... g6 {[%clk 0:02:58.2]} 3. Bg2 {[%clk 0:03:00.9]} 3... Bg7 {[%clk 0:02:58.8]}
4. O-O {[%clk 0:03:00.2]} 4... O-O {[%clk 0:02:59.4]} 5. c4 {[%clk 0:03:00.1]}
5... c6 {[%clk 0:02:57.1]} 6. d4 {[%clk 0:02:59.7]} 6... d5 {[%clk 0:02:57.6]}
7. a4 {[%clk 0:02:58.7]} 7... a5 {[%clk 0:02:54.6]} 8. Na3 {[%clk 0:02:54.8]}
8... Na6 {[%clk 0:02:53.2]} 9. cxd5 {[%clk 0:02:51.2]} 9... Nxd5 {[%clk
0:02:52.2]} 10. e4 {[%clk 0:02:48.6]} 10... Nf6 {[%clk 0:02:51.8]} 11. Qe2
{[%clk 0:02:46.4]} 11... Nb4 {[%clk 0:02:50.5]} 12. Rd1 {[%clk 0:02:45.6]} 12...
b6 {[%clk 0:02:46.7]} 13. Bf4 {[%clk 0:02:40.1]} 13... Ba6 {[%clk 0:02:45.9]}
14. Qe3 {[%clk 0:02:33.6]} 14... Ng4 {[%clk 0:02:21.2]} 15. Qc3 {[%clk 0:02:33]}
15... c5 {[%clk 0:02:17.1]} 16. h3 {[%clk 0:02:25.3]} 16... cxd4 {[%clk
0:02:16.8]} 17. Nxd4 {[%clk 0:02:20.4]} 17... Rc8 {[%clk 0:02:12.9]} 18. Qd2
{[%clk 0:02:16.1]} 18... Nd3 {[%clk 0:01:59.3]} 19. hxg4 {[%clk 0:01:49.5]}
19... Bxd4 {[%clk 0:01:59.5]} 20. Nb5 {[%clk 0:01:38.6]} 20... Bxf2+ {[%clk
0:01:51.4]} 21. Kh2 {[%clk 0:01:27.9]} 21... Nxf4 {[%clk 0:00:48.2]} 22. Qxf4
{[%clk 0:01:22.5]} 22... Qe8 {[%clk 0:00:37.6]} 23. Qxf2 {[%clk 0:01:19.2]}
23... Bxb5 {[%clk 0:00:38]} 24. axb5 {[%clk 0:01:19.4]} 24... Qxb5 {[%clk
0:00:38.9]} 25. Rd5 {[%clk 0:01:15.9]} 25... Qb4 {[%clk 0:00:36.7]} 26. Rd2
{[%clk 0:01:04.1]} 26... Rfd8 {[%clk 0:00:31.4]} 27. Rad1 {[%clk 0:01:03]} 27...
Rxd2 {[%clk 0:00:31.3]} 28. Rxd2 {[%clk 0:01:01.8]} 28... a4 {[%clk 0:00:32]}
29. Qd4 {[%clk 0:00:57.4]} 29... Qxd4 {[%clk 0:00:27]} 30. Rxd4 {[%clk
0:00:57.3]} 30... b5 {[%clk 0:00:27.9]} 31. Rb4 {[%clk 0:00:56.5]} 31... Rc4
{[%clk 0:00:26.5]} 32. Rxc4 {[%clk 0:00:55.6]} 32... bxc4 {[%clk 0:00:27.4]} 33.
Bf1 {[%clk 0:00:54.5]} 33... c3 {[%clk 0:00:24.7]} 34. bxc3 {[%clk 0:00:54.6]}
34... a3 {[%clk 0:00:25.6]} 35. Bc4 {[%clk 0:00:54.7]} 35... e6 {[%clk
0:00:25.6]} 36. Kg2 {[%clk 0:00:54]} 36... Kf8 {[%clk 0:00:26.5]} 37. g5 {[%clk
0:00:52.4]} 37... Ke7 {[%clk 0:00:27.4]} 38. Kf3 {[%clk 0:00:51.6]} 38... Kd6
{[%clk 0:00:27.9]} 39. Ke3 {[%clk 0:00:48.5]} 39... Kc5 {[%clk 0:00:27.9]} 40.
Ba2 {[%clk 0:00:48.2]} 1-0

[Event "Early-Titled-Tuesday-Blitz-May-14-2024"]
[Site "Chess.com"]
[Date "2024.05.14"]
[Round "2"]
[White "Moon_stone123"]
[Black "TenisMaster"]
[Result "0-1"]
[WhiteElo "2617"]
[BlackElo "2913"]
[TimeControl "180+1"]
[EndTime "8:17:25 PDT"]
[Termination "TenisMaster won by checkmate"]

1. Nf3 {[%clk 0:03:00.8]} 1... d5 {[%clk 0:02:59.6]} 2. g3 {[%clk 0:03:00.8]}
2... Bg4 {[%clk 0:02:58.2]} 3. Bg2 {[%clk 0:03:00.6]} 3... Nd7 {[%clk
0:02:56.7]} 4. O-O {[%clk 0:02:59.9]} 4... e6 {[%clk 0:02:56.8]} 5. h3 {[%clk
0:02:52.4]} 5... Bh5 {[%clk 0:02:56.4]} 6. d3 {[%clk 0:02:50.2]} 6... c6 {[%clk
0:02:52.1]} 7. Qe1 {[%clk 0:02:49.8]} 7... Bd6 {[%clk 0:02:51.2]} 8. e4 {[%clk
0:02:50.1]} 8... Ne7 {[%clk 0:02:51.2]} 9. exd5 {[%clk 0:02:33.1]} 9... cxd5
{[%clk 0:02:49.2]} 10. c4 {[%clk 0:02:32.9]} 10... O-O {[%clk 0:02:44]} 11. Nc3
{[%clk 0:02:32.6]} 11... Bg6 {[%clk 0:02:20.7]} 12. Qd1 {[%clk 0:02:11]} 12...
Nc5 {[%clk 0:02:20.2]} 13. d4 {[%clk 0:02:07.4]} 13... Ne4 {[%clk 0:02:04.6]}
14. c5 {[%clk 0:02:06.1]} 14... Bc7 {[%clk 0:02:01.9]} 15. Nh4 {[%clk
0:02:02.1]} 15... Nxc3 {[%clk 0:01:58.2]} 16. bxc3 {[%clk 0:02:02.4]} 16... Ba5
{[%clk 0:01:55.7]} 17. Nxg6 {[%clk 0:02:01.5]} 17... hxg6 {[%clk 0:01:55.3]} 18.
Qb3 {[%clk 0:02:00.6]} 18... b6 {[%clk 0:01:55.5]} 19. cxb6 {[%clk 0:01:58.5]}
19... axb6 {[%clk 0:01:55.1]} 20. Ba3 {[%clk 0:01:58]} 20... Rc8 {[%clk
0:01:54.3]} 21. Rfc1 {[%clk 0:01:55]} 21... Qc7 {[%clk 0:01:39.2]} 22. Bxe7
{[%clk 0:01:48.6]} 22... Qxe7 {[%clk 0:01:38.9]} 23. c4 {[%clk 0:01:49.3]} 23...
dxc4 {[%clk 0:01:33.7]} 24. Rxc4 {[%clk 0:01:48.2]} 24... Rxc4 {[%clk 0:01:28]}
25. Qxc4 {[%clk 0:01:49]} 25... Rd8 {[%clk 0:01:28.7]} 26. d5 {[%clk 0:01:46.6]}
26... e5 {[%clk 0:01:25.6]} 27. Rd1 {[%clk 0:01:44.9]} 27... Bb4 {[%clk
0:01:24]} 28. a4 {[%clk 0:01:13.1]} 28... Bc5 {[%clk 0:01:17.2]} 29. Rc1 {[%clk
0:01:13.2]} 29... Qa7 {[%clk 0:01:01.8]} 30. Qe4 {[%clk 0:01:07.3]} 30... Bd4
{[%clk 0:00:59.7]} 31. Qc2 {[%clk 0:00:49.7]} 31... Qe7 {[%clk 0:00:53.9]} 32.
Qc7 {[%clk 0:00:41.3]} 32... Qf6 {[%clk 0:00:53.7]} 33. Rc2 {[%clk 0:00:41.4]}
33... g5 {[%clk 0:00:36.5]} 34. Be4 {[%clk 0:00:39.1]} 34... g6 {[%clk 0:00:36]}
35. Kg2 {[%clk 0:00:39.1]} 35... Kg7 {[%clk 0:00:33]} 36. Rc6 {[%clk 0:00:35.5]}
36... Qxf2+ {[%clk 0:00:32.7]} 37. Kh1 {[%clk 0:00:33.2]} 37... Qg1# {[%clk
0:00:33.6]} 0-1

[Event "Early-Titled-Tuesday-Blitz-May-14-2024"]
[Site "Chess.com"]
[Date "2024.05.14"]
[Round "2"]
[White "briesmas"]
[Black "only_strong_moves"]
[Result "0-1"]
[WhiteElo "2331"]
[BlackElo "2712"]
[TimeControl "180+1"]
[EndTime "8:17:25 PDT"]
[Termination "only_strong_moves won by resignation"]

1. e4 {[%clk 0:03:00.9]} 1... e5 {[%clk 0:02:59.9]} 2. Nf3 {[%clk 0:03:00]} 2...
Nc6 {[%clk 0:02:59.6]} 3. Bb5 {[%clk 0:03:00]} 3... a6 {[%clk 0:03:00]} 4. Ba4
{[%clk 0:03:00.2]} 4... Nge7 {[%clk 0:03:00.1]} 5. c3 {[%clk 0:02:54.8]} 5...
Ng6 {[%clk 0:02:59.8]} 6. O-O {[%clk 0:02:49.8]} 6... d5 {[%clk 0:02:59.3]} 7.
exd5 {[%clk 0:02:48]} 7... Qxd5 {[%clk 0:03:00.2]} 8. d4 {[%clk 0:02:09]} 8...
Bg4 {[%clk 0:02:59.7]} 9. Re1 {[%clk 0:01:49.3]} 9... O-O-O {[%clk 0:02:51.2]}
10. Bb3 {[%clk 0:01:14.2]} 10... Qd7 {[%clk 0:02:50.4]} 11. d5 {[%clk
0:00:52.3]} 11... Na5 {[%clk 0:02:50.5]} 12. Qd3 {[%clk 0:00:37.7]} 12... Nxb3
{[%clk 0:02:42.1]} 13. axb3 {[%clk 0:00:38.1]} 13... Qxd5 {[%clk 0:02:42.7]} 14.
Qxd5 {[%clk 0:00:33.8]} 14... Rxd5 {[%clk 0:02:43.6]} 15. Ng5 {[%clk 0:00:32.3]}
15... Rd7 {[%clk 0:02:39.3]} 16. Nd2 {[%clk 0:00:29.4]} 16... h6 {[%clk
0:02:37.4]} 17. Ngf3 {[%clk 0:00:24.8]} 17... f6 {[%clk 0:02:31.7]} 18. h3
{[%clk 0:00:25]} 18... Be6 {[%clk 0:02:31.1]} 19. b4 {[%clk 0:00:22.5]} 19...
Bd6 {[%clk 0:02:28.7]} 20. Ne4 {[%clk 0:00:22.7]} 20... Rhd8 {[%clk 0:02:28]}
21. Be3 {[%clk 0:00:22.5]} 21... Bd5 {[%clk 0:02:27.7]} 22. Nc5 {[%clk
0:00:20.3]} 22... Bxc5 {[%clk 0:02:27.6]} 23. Bxc5 {[%clk 0:00:18.5]} 23... Bxf3
{[%clk 0:02:28.1]} 24. gxf3 {[%clk 0:00:19.1]} 24... Rd2 {[%clk 0:02:28.3]} 25.
Rab1 {[%clk 0:00:15.4]} 25... Nh4 {[%clk 0:02:28.7]} 26. Re3 {[%clk 0:00:15.6]}
26... R8d3 {[%clk 0:02:28.6]} 27. Rxd3 {[%clk 0:00:14.2]} 27... Rxd3 {[%clk
0:02:29.5]} 28. c4 {[%clk 0:00:09]} 28... Nxf3+ {[%clk 0:02:29.6]} 29. Kg2
{[%clk 0:00:08.5]} 29... Ng5 {[%clk 0:02:28.4]} 30. h4 {[%clk 0:00:08.3]} 30...
Ne4 {[%clk 0:02:28.2]} 31. Be3 {[%clk 0:00:08.9]} 31... Nd6 {[%clk 0:02:25.7]}
32. c5 {[%clk 0:00:08.4]} 32... Nf5 {[%clk 0:02:26.4]} 33. Kf3 {[%clk
0:00:05.8]} 33... Nxh4+ {[%clk 0:02:24.1]} 34. Ke4 {[%clk 0:00:05]} 34... Rd7
{[%clk 0:02:24.5]} 35. Rh1 {[%clk 0:00:04.7]} 35... Ng6 {[%clk 0:02:24.6]} 36.
Rg1 {[%clk 0:00:05.1]} 36... Nf8 {[%clk 0:02:24.7]} 37. b3 {[%clk 0:00:03.1]}
37... c6 {[%clk 0:02:24]} 38. Kf5 {[%clk 0:00:03.3]} 38... Rf7 {[%clk
0:02:23.9]} 39. Ke4 {[%clk 0:00:02.1]} 39... h5 {[%clk 0:02:22]} 40. Rh1 {[%clk
0:00:01.8]} 40... g6 {[%clk 0:02:22.7]} 41. Kd3 {[%clk 0:00:01.8]} 41... Kd7
{[%clk 0:02:21.8]} 42. Ke4 {[%clk 0:00:02.3]} 42... Ke6 {[%clk 0:02:22.1]} 43.
f4 {[%clk 0:00:03]} 43... f5+ {[%clk 0:02:22.3]} 44. Kf3 {[%clk 0:00:03.5]}
44... e4+ {[%clk 0:02:23]} 45. Ke2 {[%clk 0:00:03.9]} 45... Nd7 {[%clk
0:02:23.1]} 46. Rg1 {[%clk 0:00:04.1]} 46... Rg7 {[%clk 0:02:22.8]} 47. Bd4
{[%clk 0:00:03.9]} 47... Rg8 {[%clk 0:02:23.4]} 48. Ke3 {[%clk 0:00:04]} 48...
Nf6 {[%clk 0:02:23.9]} 49. Bxf6 {[%clk 0:00:03.6]} 49... Kxf6 {[%clk 0:02:24.8]}
50. Rd1 {[%clk 0:00:04]} 50... h4 {[%clk 0:02:25]} 51. Rd6+ {[%clk 0:00:03.8]}
51... Ke7 {[%clk 0:02:25.5]} 52. Rd1 {[%clk 0:00:03.8]} 52... h3 {[%clk
0:02:25.7]} 53. Rh1 {[%clk 0:00:03.9]} 53... Rh8 {[%clk 0:02:26.3]} 54. Rh2
{[%clk 0:00:04.2]} 54... Ke6 {[%clk 0:02:26.8]} 55. Kd4 {[%clk 0:00:04.2]} 55...
Rh4 {[%clk 0:02:27.4]} 56. Ke3 {[%clk 0:00:04.3]} 56... Kf6 {[%clk 0:02:24.7]}
57. Ke2 {[%clk 0:00:03.7]} 57... g5 {[%clk 0:02:24.4]} 58. fxg5+ {[%clk
0:00:03.9]} 58... Kxg5 {[%clk 0:02:25.3]} 59. Ke3 {[%clk 0:00:04.2]} 59... Kf6
{[%clk 0:02:25.8]} 60. Ke2 {[%clk 0:00:03.9]} 60... Ke5 {[%clk 0:02:26.1]} 61.
Ke3 {[%clk 0:00:04.3]} 61... f4+ {[%clk 0:02:26.8]} 62. Ke2 {[%clk 0:00:04.8]}
62... Kd4 {[%clk 0:02:26]} 63. Kf2 {[%clk 0:00:05.3]} 63... Kc3 {[%clk 0:02:25]}
64. Rh1 {[%clk 0:00:05.2]} 64... Kxb3 {[%clk 0:02:25]} 65. Kg1 {[%clk
0:00:04.4]} 65... h2+ {[%clk 0:02:25.1]} 66. Kg2 {[%clk 0:00:04.4]} 66... Kxb4
{[%clk 0:02:23.7]} 67. Kf2 {[%clk 0:00:04.5]} 67... Kxc5 {[%clk 0:02:24.1]} 68.
Rc1+ {[%clk 0:00:04.7]} 68... Kd6 {[%clk 0:02:23.6]} 69. Rh1 {[%clk 0:00:05.6]}
69... a5 {[%clk 0:02:23.7]} 70. Ke2 {[%clk 0:00:06.5]} 70... a4 {[%clk
0:02:24.3]} 71. Kd2 {[%clk 0:00:07.4]} 71... a3 {[%clk 0:02:24.9]} 72. Kc2
{[%clk 0:00:07.7]} 72... f3 {[%clk 0:02:25.6]} 73. Kb3 {[%clk 0:00:07.3]} 73...
f2 {[%clk 0:02:25.7]} 74. Rd1+ {[%clk 0:00:07.4]} 74... Kc7 {[%clk 0:02:25.5]}
75. Rh1 {[%clk 0:00:06.7]} 75... f1=Q {[%clk 0:02:25.7]} 76. Rxf1 {[%clk
0:00:07.4]} 76... h1=Q {[%clk 0:02:26.3]} 77. Rxh1 {[%clk 0:00:08.1]} 77... Rxh1
{[%clk 0:02:26.3]} 0-1

[Event "Early-Titled-Tuesday-Blitz-May-14-2024"]
[Site "Chess.com"]
[Date "2024.05.14"]
[Round "2"]
[White "frederiksvane"]
[Black "Sanyura"]
[Result "1-0"]
[WhiteElo "2971"]
[BlackElo "2642"]
[TimeControl "180+1"]
[EndTime "8:17:32 PDT"]
[Termination "frederiksvane won on time"]

1. e3 {[%clk 0:02:59.5]} 1... g5 {[%clk 0:02:33]} 2. d4 {[%clk 0:02:54.8]} 2...
Bg7 {[%clk 0:02:30.7]} 3. c4 {[%clk 0:02:55]} 3... c5 {[%clk 0:02:30.4]} 4. d5
{[%clk 0:02:54.9]} 4... d6 {[%clk 0:02:20.6]} 5. Nc3 {[%clk 0:02:54.8]} 5... Bf5
{[%clk 0:02:19.8]} 6. Nge2 {[%clk 0:02:41.7]} 6... Nd7 {[%clk 0:02:16.8]} 7. e4
{[%clk 0:02:39.7]} 7... Bg6 {[%clk 0:02:16.2]} 8. Bxg5 {[%clk 0:02:39.6]} 8...
Ne5 {[%clk 0:02:02.5]} 9. Nf4 {[%clk 0:02:34.2]} 9... a6 {[%clk 0:01:35.3]} 10.
Be2 {[%clk 0:02:29.2]} 10... Nf6 {[%clk 0:01:24.7]} 11. Nxg6 {[%clk 0:02:16.7]}
11... Nxg6 {[%clk 0:01:20.5]} 12. O-O {[%clk 0:02:15.4]} 12... h5 {[%clk
0:01:20.4]} 13. Rb1 {[%clk 0:02:09.4]} 13... Kf8 {[%clk 0:00:39]} 14. Qd2 {[%clk
0:02:09]} 14... Qa5 {[%clk 0:00:33.1]} 15. a3 {[%clk 0:02:07]} 15... b5 {[%clk
0:00:24.4]} 16. cxb5 {[%clk 0:01:39.8]} 16... axb5 {[%clk 0:00:22.8]} 17. b4
{[%clk 0:01:39.8]} 17... Qxa3 {[%clk 0:00:20.3]} 18. Nxb5 {[%clk 0:01:40.3]}
18... Qa2 {[%clk 0:00:19.1]} 19. Qxa2 {[%clk 0:01:23.9]} 19... Rxa2 {[%clk
0:00:20]} 20. Nc3 {[%clk 0:01:24.6]} 20... Rc2 {[%clk 0:00:17.2]} 21. bxc5
{[%clk 0:01:25]} 21... Rxc3 {[%clk 0:00:17.6]} 22. Rb8+ {[%clk 0:01:25]} 22...
Ne8 {[%clk 0:00:17.8]} 23. Bb5 {[%clk 0:01:25.7]} 23... Bd4 {[%clk 0:00:09.2]}
24. Rxe8+ {[%clk 0:01:13.7]} 24... Kg7 {[%clk 0:00:09.1]} 25. Rxh8 {[%clk
0:01:14.2]} 25... Kxh8 {[%clk 0:00:09.6]} 26. c6 {[%clk 0:01:14.9]} 26... Kg7
{[%clk 0:00:07]} 27. Rc1 {[%clk 0:01:01.3]} 27... Rxc1+ {[%clk 0:00:03.2]} 28.
Bxc1 {[%clk 0:01:01.3]} 28... Bb6 {[%clk 0:00:03.9]} 29. Be3 {[%clk 0:01:00.1]}
29... Bc7 {[%clk 0:00:04.2]} 30. f4 {[%clk 0:01:00.5]} 30... e6 {[%clk
0:00:04.2]} 31. Kf2 {[%clk 0:00:55.5]} 31... Ne7 {[%clk 0:00:04.6]} 32. Bc4
{[%clk 0:00:55.6]} 32... f5 {[%clk 0:00:04.9]} 33. Kf3 {[%clk 0:00:52.3]} 33...
Kg6 {[%clk 0:00:02.8]} 34. dxe6 {[%clk 0:00:49.9]} 34... fxe4+ {[%clk
0:00:02.4]} 35. Kxe4 {[%clk 0:00:50.8]} 1-0

[Event "Early-Titled-Tuesday-Blitz-May-14-2024"]
[Site "Chess.com"]
[Date "2024.05.14"]
[Round "2"]
[White "JanMur7"]
[Black "ArtemDyachuk"]
[Result "0-1"]
[WhiteElo "2287"]
[BlackElo "2705"]
[TimeControl "180+1"]
[EndTime "8:17:32 PDT"]
[Termination "ArtemDyachuk won by checkmate"]

1. c4 {[%clk 0:03:00.9]} 1... e5 {[%clk 0:02:58.9]} 2. Nc3 {[%clk 0:03:01.4]}
2... Nf6 {[%clk 0:02:58.9]} 3. Nf3 {[%clk 0:03:02]} 3... e4 {[%clk 0:02:59.2]}
4. Ng5 {[%clk 0:03:02.1]} 4... c6 {[%clk 0:02:59.7]} 5. Ngxe4 {[%clk 0:02:58.4]}
5... Nxe4 {[%clk 0:03:00.6]} 6. Nxe4 {[%clk 0:02:58.4]} 6... d5 {[%clk
0:03:00.9]} 7. cxd5 {[%clk 0:02:59.2]} 7... cxd5 {[%clk 0:03:01.7]} 8. Nc3
{[%clk 0:02:59.8]} 8... d4 {[%clk 0:02:49.6]} 9. Nb1 {[%clk 0:02:47.3]} 9... Nc6
{[%clk 0:02:48.9]} 10. d3 {[%clk 0:02:46.6]} 10... Bf5 {[%clk 0:02:45.8]} 11. g3
{[%clk 0:02:46]} 11... Qd5 {[%clk 0:02:37.7]} 12. Rg1 {[%clk 0:02:42.8]} 12...
O-O-O {[%clk 0:02:31.7]} 13. Bg2 {[%clk 0:02:42.5]} 13... Qe6 {[%clk 0:02:28.6]}
14. Bf4 {[%clk 0:02:34]} 14... h6 {[%clk 0:02:07.5]} 15. h4 {[%clk 0:02:19.9]}
15... g5 {[%clk 0:02:02.1]} 16. hxg5 {[%clk 0:02:18.3]} 16... hxg5 {[%clk
0:02:03]} 17. Bxg5 {[%clk 0:02:17.5]} 17... Re8 {[%clk 0:02:00.4]} 18. Nd2
{[%clk 0:02:00.4]} 18... Bxd3 {[%clk 0:01:53.7]} 19. Bf3 {[%clk 0:01:53.7]}
19... Ba6 {[%clk 0:01:16.8]} 20. Rc1 {[%clk 0:01:37.9]} 20... Kb8 {[%clk
0:01:10.7]} 21. a3 {[%clk 0:01:17.6]} 21... Ka8 {[%clk 0:00:47.5]} 22. b4 {[%clk
0:01:10.9]} 22... Ne5 {[%clk 0:00:45.9]} 23. Be4 {[%clk 0:00:34.8]} 23... f5
{[%clk 0:00:45.2]} 24. Bb1 {[%clk 0:00:33.7]} 24... Bxe2 {[%clk 0:00:42.7]} 25.
Qa4 {[%clk 0:00:16.6]} 25... Nd3+ {[%clk 0:00:36.2]} 26. Bxd3 {[%clk 0:00:15.3]}
26... Bxd3+ {[%clk 0:00:37.1]} 27. Be3 {[%clk 0:00:08]} 27... dxe3 {[%clk
0:00:37.2]} 28. Qxe8+ {[%clk 0:00:05.2]} 28... Qxe8 {[%clk 0:00:35.8]} 29. Nf3
{[%clk 0:00:05.3]} 29... exf2+ {[%clk 0:00:35.7]} 30. Kxf2 {[%clk 0:00:06.2]}
30... Qe2# {[%clk 0:00:35.4]} 0-1

[Event "Early-Titled-Tuesday-Blitz-May-14-2024"]
[Site "Chess.com"]
[Date "2024.05.14"]
[Round "2"]
[White "catalin009"]
[Black "ferdipy"]
[Result "0-1"]
[WhiteElo "2516"]
[BlackElo "2313"]
[TimeControl "180+1"]
[EndTime "8:17:33 PDT"]
[Termination "ferdipy won by resignation"]

1. e4 {[%clk 0:02:59.2]} 1... e6 {[%clk 0:02:59.7]} 2. d4 {[%clk 0:02:58.2]}
2... d5 {[%clk 0:03:00.6]} 3. Nc3 {[%clk 0:02:58.9]} 3... Bb4 {[%clk 0:02:59.7]}
4. e5 {[%clk 0:02:59.5]} 4... c5 {[%clk 0:02:59.7]} 5. a3 {[%clk 0:02:59.6]}
5... Bxc3+ {[%clk 0:03:00]} 6. bxc3 {[%clk 0:03:00.5]} 6... Ne7 {[%clk
0:03:00.5]} 7. Qg4 {[%clk 0:02:59.7]} 7... Qc7 {[%clk 0:03:00.3]} 8. Qxg7 {[%clk
0:02:59.5]} 8... Rg8 {[%clk 0:03:00.5]} 9. Qxh7 {[%clk 0:02:59.7]} 9... cxd4
{[%clk 0:03:01.4]} 10. Ne2 {[%clk 0:02:46.3]} 10... Nbc6 {[%clk 0:02:59.7]} 11.
f4 {[%clk 0:02:46.1]} 11... dxc3 {[%clk 0:02:56]} 12. Qd3 {[%clk 0:02:44.6]}
12... Bd7 {[%clk 0:02:53.9]} 13. Ng3 {[%clk 0:02:38.1]} 13... O-O-O {[%clk
0:02:48.9]} 14. Be2 {[%clk 0:02:38.3]} 14... d4 {[%clk 0:02:44.7]} 15. Bf3
{[%clk 0:02:36.3]} 15... Nf5 {[%clk 0:02:37.1]} 16. Nxf5 {[%clk 0:02:35.1]}
16... exf5 {[%clk 0:02:38]} 17. O-O {[%clk 0:02:31.4]} 17... Be6 {[%clk
0:02:37.5]} 18. Rb1 {[%clk 0:02:28.1]} 18... Na5 {[%clk 0:02:27.4]} 19. Rb4
{[%clk 0:02:08.7]} 19... Nc6 {[%clk 0:02:17.9]} 20. Rb5 {[%clk 0:02:02.8]} 20...
a6 {[%clk 0:02:15.3]} 21. Rc5 {[%clk 0:02:02.7]} 21... Qb6 {[%clk 0:02:08.5]}
22. Rxc6+ {[%clk 0:01:34.1]} 22... bxc6 {[%clk 0:02:09.4]} 23. a4 {[%clk
0:01:29.8]} 23... c5 {[%clk 0:02:05.4]} 24. Ba3 {[%clk 0:01:05.5]} 24... c4
{[%clk 0:02:05.3]} 25. Qd1 {[%clk 0:01:06.3]} 25... Bd5 {[%clk 0:01:34.3]} 26.
a5 {[%clk 0:00:41.8]} 26... Qc6 {[%clk 0:01:23.2]} 27. Bd6 {[%clk 0:00:36]}
27... Bxf3 {[%clk 0:01:15.8]} 28. Rxf3 {[%clk 0:00:36.9]} 28... Qe4 {[%clk
0:00:56.9]} 29. Qb1 {[%clk 0:00:26.9]} 29... Rxd6 {[%clk 0:00:36.8]} 30. exd6
{[%clk 0:00:23.8]} 30... Qxf3 {[%clk 0:00:35.1]} 31. d7+ {[%clk 0:00:23.1]}
31... Kxd7 {[%clk 0:00:33]} 0-1

[Event "Early-Titled-Tuesday-Blitz-May-14-2024"]
[Site "Chess.com"]
[Date "2024.05.14"]
[Round "2"]
[White "Anton_Demchenko"]
[Black "KINGOF2SOAP"]
[Result "1-0"]
[WhiteElo "2857"]
[BlackElo "2427"]
[TimeControl "180+1"]
[EndTime "8:17:34 PDT"]
[Termination "Anton_Demchenko won by checkmate"]

1. e4 {[%clk 0:02:55.3]} 1... d5 {[%clk 0:02:57.2]} 2. exd5 {[%clk 0:02:55.2]}
2... Qxd5 {[%clk 0:02:58.1]} 3. Nc3 {[%clk 0:02:55.1]} 3... Qd6 {[%clk
0:02:58.4]} 4. g3 {[%clk 0:02:53.5]} 4... Nf6 {[%clk 0:02:57.5]} 5. Bg2 {[%clk
0:02:54.2]} 5... a6 {[%clk 0:02:57.1]} 6. Nge2 {[%clk 0:02:48]} 6... Nc6 {[%clk
0:02:56.4]} 7. d4 {[%clk 0:02:46.5]} 7... Bf5 {[%clk 0:02:53.6]} 8. Bf4 {[%clk
0:02:33.6]} 8... Qd7 {[%clk 0:02:52]} 9. O-O {[%clk 0:02:15.1]} 9... h5 {[%clk
0:02:49.6]} 10. d5 {[%clk 0:02:06.7]} 10... Na7 {[%clk 0:02:38.1]} 11. Re1
{[%clk 0:02:00.3]} 11... h4 {[%clk 0:02:35.5]} 12. Nd4 {[%clk 0:02:00.5]} 12...
Bh3 {[%clk 0:02:29.2]} 13. Ne6 {[%clk 0:01:46.3]} 13... Bxg2 {[%clk 0:02:16.5]}
14. Nxc7+ {[%clk 0:01:45.4]} 14... Kd8 {[%clk 0:02:13]} 15. Nxa8 {[%clk
0:01:35.9]} 15... hxg3 {[%clk 0:02:11.1]} 16. Bc7+ {[%clk 0:01:31.2]} 16... Ke8
{[%clk 0:02:05.5]} 17. Bxg3 {[%clk 0:01:31.3]} 17... Qh3 {[%clk 0:01:38.9]} 18.
d6 {[%clk 0:00:30.6]} 18... e6 {[%clk 0:01:20.2]} 19. f3 {[%clk 0:00:28]} 19...
Nc6 {[%clk 0:00:19.5]} 20. Qe2 {[%clk 0:00:27.6]} 20... Kd7 {[%clk 0:00:16.7]}
21. Nb6+ {[%clk 0:00:24.6]} 21... Kd8 {[%clk 0:00:16]} 22. Qxg2 {[%clk
0:00:25.3]} 22... Qxg2+ {[%clk 0:00:15.8]} 23. Kxg2 {[%clk 0:00:25.3]} 23... Nh5
{[%clk 0:00:15.9]} 24. Rad1 {[%clk 0:00:24.1]} 24... Nxg3 {[%clk 0:00:15]} 25.
hxg3 {[%clk 0:00:25]} 25... Nb4 {[%clk 0:00:13.2]} 26. Ne4 {[%clk 0:00:23.6]}
26... Nxc2 {[%clk 0:00:12.1]} 27. Rc1 {[%clk 0:00:23.8]} 27... Nb4 {[%clk
0:00:12.1]} 28. Rc8# {[%clk 0:00:23.5]} 1-0